bitfinex-derivatives/quotes_BTCF0:USTF0_20250709
["timestamp","ask_amount","ask_price","bid_price","bid_amount"]
[1752091978471,0.1797144,111260.0,111250.0,0.97442104]
[1752091978979,0.1797144,111260.0,111250.0,0.88457584]
[1752091979176,0.1797144,111260.0,111250.0,0.90946584]
[1752091979374,0.1797144,111260.0,111250.0,0.92495584]
[1752091979567,0.1817144,111260.0,111250.0,1.30634273]
[1752091979880,0.1817144,111260.0,111250.0,2.00154273]
[1752091980073,0.002,111260.0,111250.0,2.00154273]
[1752091980680,0.004,111260.0,111250.0,2.00154273]
[1752091981173,0.004,111260.0,111250.0,1.67154273]
[1752091981389,0.004,111260.0,111250.0,2.02154273]
[1752091982086,0.3164638,111280.0,111270.0,0.1796982]
[1752091982381,0.3330038,111280.0,111270.0,0.59412354]
[1752091982976,0.002,111280.0,111270.0,1.33631043]
[1752091983169,0.003,111280.0,111270.0,1.68195043]
[1752091983377,0.003,111280.0,111270.0,2.01995043]
[1752091984277,0.0449312,111260.0,111230.0,0.02489]
[1752091984476,0.92193359,111240.0,111230.0,0.07489]
[1752091984680,0.1797467,111240.0,111230.0,0.43569]
[1752091984973,0.5405467,111240.0,111230.0,1.46357]
[1752091985579,0.1797467,111240.0,111230.0,2.20575689]
[1752091985981,0.1797467,111240.0,111230.0,2.20675689]
[1752091986179,0.4057341,111250.0,111230.0,2.22387239]
[1752091986479,0.224591,111280.0,111260.0,0.0449273]
[1752091986676,0.224591,111280.0,111260.0,0.5497097]
[1752091986677,0.1796983,111270.0,111260.0,0.5497097]
[1752091986870,0.1796983,111270.0,111260.0,2.64010129]
[1752091987071,0.2715385,111280.0,111270.0,0.1796982]
[1752091987270,0.2266151,111280.0,111270.0,1.25188509]
[1752091987876,0.2266151,111280.0,111270.0,1.27677509]
[1752091988074,0.002,111280.0,111270.0,1.27677509]
[1752091988281,0.002,111280.0,111270.0,1.32677509]
[1752091989173,0.02069024,111290.0,111280.0,0.1796821]
[1752091989378,0.20035614,111290.0,111280.0,2.85446899]
[1752091989778,0.20035624,111290.0,111280.0,2.4730821]
[1752091989984,0.20035624,111290.0,111280.0,2.85446899]
[1752091990183,0.02069024,111290.0,111280.0,2.85446899]
[1752091991287,0.02469024,111290.0,111280.0,2.85446899]
[1752091991481,0.02469024,111290.0,111280.0,2.4730821]
[1752091991686,0.02469024,111290.0,111280.0,2.47446899]
[1752091991885,0.02469024,111290.0,111280.0,2.79446899]
[1752091992179,0.02769024,111290.0,111280.0,2.79446899]
[1752091992378,0.20735614,111290.0,111280.0,1.0016821]
[1752091992581,0.24690764,111290.0,111280.0,0.8604821]
[1752091992778,0.38710581,111290.0,111280.0,0.7108]
[1752091992981,0.72894303,111290.0,111280.0,0.35]
[1752091993286,1.15623468,111290.0,111280.0,0.35]
[1752091994086,0.77484779,111290.0,111280.0,0.35]
[1752091994583,1.15623468,111290.0,111280.0,0.35]
[1752091996285,0.1797144,111260.0,111250.0,1.41241499]
[1752091996486,0.1797144,111260.0,111250.0,2.08121499]
[1752091996979,0.1797144,111260.0,111250.0,2.44201499]
[1752091997286,0.5405144,111260.0,111250.0,0.6688]
[1752091997492,0.6935144,111260.0,111250.0,0.6688]
[1752091997785,0.1797467,111240.0,111230.0,0.3436031]
[1752091997983,0.1797467,111240.0,111230.0,1.3651055]
[1752091998184,0.1797467,111240.0,111230.0,1.0573055]
[1752091998385,0.4675498,111250.0,111240.0,0.1797467]
[1752091998688,0.4506544,111270.0,111260.0,0.1797144]
[1752091998882,0.4506544,111270.0,111260.0,1.37559509]
[1752091998883,0.21904695,111270.0,111260.0,1.37559509]
[1752091999084,0.03934875,111270.0,111260.0,1.52389509]
[1752091999284,0.37904695,111270.0,111260.0,1.33179509]
[1752091999484,0.03934875,111270.0,111260.0,1.33179509]
[1752091999683,0.21904695,111270.0,111260.0,1.33179509]
[1752092000092,0.4123404,111280.0,111270.0,0.1796982]
[1752092000289,0.30887941,111280.0,111270.0,0.88112509]
[1752092000493,0.39887941,111280.0,111270.0,0.88112509]
[1752092000689,0.30887941,111280.0,111270.0,0.4958982]
[1752092001597,0.31287941,111280.0,111270.0,0.4958982]
[1752092001993,0.67367941,111280.0,111270.0,0.4958982]
[1752092002189,0.04333901,111280.0,111270.0,0.4958982]
[1752092002390,0.22302111,111280.0,111270.0,1.56920509]
[1752092002590,0.04333901,111280.0,111270.0,1.91000509]
[1752092002792,0.22302111,111280.0,111270.0,1.95000509]
[1752092003593,0.04333901,111280.0,111270.0,1.95000509]
[1752092003797,0.04333901,111280.0,111270.0,1.98000509]
[1752092004298,0.04333901,111280.0,111270.0,2.00384509]
[1752092004788,0.04333901,111280.0,111270.0,2.24384509]
[1752092005196,0.04333901,111280.0,111270.0,2.74384509]
[1752092006089,0.02069024,111290.0,111280.0,0.1796821]
[1752092006287,0.20035614,111290.0,111280.0,0.7851221]
[1752092006486,0.56115614,111290.0,111280.0,0.24464]
[1752092006688,0.56115614,111290.0,111280.0,0.4004821]
[1752092006890,0.56115614,111290.0,111280.0,0.2208]
[1752092007305,0.70595614,111290.0,111280.0,0.07]
[1752092007591,0.70595614,111290.0,111280.0,0.1796821]
[1752092007792,0.70595614,111290.0,111280.0,0.1754]
[1752092008187,0.70195614,111290.0,111280.0,0.3550821]
[1752092008388,0.70895614,111290.0,111280.0,0.3460821]
[1752092008889,0.70895614,111290.0,111280.0,0.1664]
[1752092009196,1.45314303,111290.0,111280.0,0.021]
[1752092009500,1.49874303,111290.0,111280.0,0.021]
[1752092009796,1.11735614,111290.0,111280.0,0.1602]
[1752092010199,1.76259614,111290.0,111280.0,0.1602]
[1752092010798,1.80819614,111290.0,111280.0,0.1602]
[1752092011295,1.80819614,111290.0,111280.0,0.1702]
[1752092011500,2.18958303,111290.0,111280.0,0.1702]
[1752092011994,2.55422303,111290.0,111280.0,0.031]
[1752092012195,1.85342303,111290.0,111280.0,0.2106821]
[1752092012494,0.20935614,111290.0,111280.0,0.61590899]
[1752092012693,0.2694581,111310.0,111280.0,2.15979588]
[1752092012893,0.2694581,111310.0,111300.0,0.92183669]
[1752092013091,0.2694581,111310.0,111300.0,0.6504498]
[1752092013290,0.2694581,111310.0,111300.0,0.11]
[1752092013291,0.6302581,111310.0,111300.0,0.11]
[1752092013491,0.4140581,111310.0,111300.0,0.6504498]
[1752092013687,0.4140581,111310.0,111300.0,0.11]
[1752092013893,0.1796498,111300.0,111290.0,0.7954225]
[1752092014093,0.1796498,111300.0,111290.0,0.7905062]
[1752092014289,0.1796498,111300.0,111290.0,0.04]
[1752092014490,0.3205498,111300.0,111290.0,0.2196659]
[1752092014700,0.1796498,111300.0,111290.0,0.2435059]
[1752092014899,0.1796498,111300.0,111290.0,0.77139279]
[1752092015097,0.1796498,111300.0,111290.0,1.13219279]
[1752092015301,0.1796498,111300.0,111290.0,1.13519279]
[1752092015700,0.1796498,111300.0,111290.0,1.82519279]
[1752092015898,0.1796498,111300.0,111290.0,1.98219279]
[1752092016097,0.3143808,111310.0,111300.0,0.1796498]
[1752092016297,0.3143808,111310.0,111300.0,0.5419898]
[1752092016593,0.3143808,111310.0,111300.0,0.92337669]
[1752092017098,0.3143808,111310.0,111300.0,0.5419898]
[1752092017301,0.47851446,111320.0,111310.0,0.1796337]
[1752092017508,0.32621446,111320.0,111310.0,0.8597337]
[1752092017700,0.32621446,111320.0,111310.0,1.26496059]
[1752092018199,0.36480859,111320.0,111310.0,0.8835737]
[1752092018405,0.36480859,111320.0,111310.0,0.8995737]
[1752092018700,0.36480859,111320.0,111310.0,1.28096059]
[1752092018900,0.31989669,111320.0,111310.0,1.97048059]
[1752092019106,0.24026863,111320.0,111310.0,1.97548059]
[1752092019299,0.24026863,111320.0,111310.0,2.33928059]
[1752092019501,0.04159413,111320.0,111310.0,2.29928059]
[1752092019702,0.04159413,111320.0,111310.0,2.67627562]
[1752092020008,0.26221064,111330.0,111320.0,0.1796175]
[1752092020206,0.30034283,111330.0,111320.0,1.11050439]
[1752092020406,0.30034283,111330.0,111320.0,1.13392439]
[1752092020907,0.12073923,111330.0,111320.0,1.13392439]
[1752092021298,0.12073923,111330.0,111320.0,1.43392439]
[1752092021606,0.12073923,111330.0,111320.0,1.81531128]
[1752092021804,0.30034063,111330.0,111320.0,1.43392439]
[1752092022004,0.12073923,111330.0,111320.0,1.42692439]
[1752092022406,0.30034063,111330.0,111320.0,1.42692439]
[1752092022704,0.30034063,111330.0,111320.0,1.93192439]
[1752092022901,0.30034063,111330.0,111320.0,1.60192439]
[1752092023102,0.22073359,111330.0,111320.0,2.11922439]
[1752092023302,0.04113219,111330.0,111320.0,3.18945128]
[1752092023502,0.28699476,111350.0,111340.0,0.1795853]
[1752092023707,0.28699476,111350.0,111340.0,1.32977219]
[1752092023907,0.28699476,111350.0,111340.0,1.35319219]
[1752092024210,0.28699476,111350.0,111340.0,1.64309219]
[1752092024600,0.1795715,111350.0,111340.0,1.64309219]
[1752092025104,0.33386716,111360.0,111350.0,0.1795691]
[1752092025309,0.001,111350.0,111340.0,1.04196509]
[1752092025494,0.001,111350.0,111340.0,2.08044509]
[1752092025697,0.001,111350.0,111340.0,2.58044509]
[1752092026003,0.10942326,111360.0,111350.0,0.1795691]
[1752092026004,0.002,111360.0,111350.0,0.1795691]
[1752092026211,0.002,111360.0,111350.0,1.27475599]
[1752092026395,0.002,111360.0,111350.0,1.29817599]
[1752092026596,0.002,111360.0,111350.0,1.22817599]
[1752092026801,0.181553,111360.0,111350.0,0.30642]
[1752092027005,0.542353,111360.0,111350.0,0.80458]
[1752092027505,0.542353,111360.0,111350.0,1.4841491]
[1752092027808,0.543353,111360.0,111350.0,1.4511491]
[1752092028009,0.182553,111360.0,111350.0,1.8119491]
[1752092028201,0.182553,111360.0,111350.0,2.19333599]
[1752092028402,0.003,111360.0,111350.0,2.19333599]
[1752092028598,0.182553,111360.0,111350.0,2.19333599]
[1752092028805,0.003,111360.0,111350.0,2.46333599]
[1752092029306,0.003,111360.0,111350.0,1.96333599]
[1752092030306,0.003,111360.0,111350.0,1.27517599]
[1752092030602,0.003,111360.0,111350.0,1.96305599]
[1752092031212,0.003,111360.0,111350.0,1.98305599]
[1752092032513,0.003,111360.0,111350.0,2.48305599]
[1752092032712,0.003,111360.0,111350.0,2.49305599]
[1752092033418,0.003,111360.0,111350.0,2.50590082]
[1752092034008,0.002,111370.0,111360.0,0.179553]
[1752092034212,0.002,111370.0,111360.0,1.54654678]
[1752092035109,0.003,111370.0,111360.0,1.54654678]
[1752092035513,0.003,111370.0,111360.0,2.04654678]
[1752092036103,0.01842315,111380.0,111370.0,0.1795369]
[1752092036304,0.01842315,111380.0,111370.0,1.87852379]
[1752092036605,0.01842315,111380.0,111370.0,1.90194379]
[1752092037207,0.002,111400.0,111390.0,0.56089149]
[1752092037406,0.002,111400.0,111390.0,1.98167149]
[1752092038411,0.002,111400.0,111390.0,2.00167149]
[1752092038609,0.002,111410.0,111400.0,0.1794885]
[1752092038910,0.002,111410.0,111400.0,1.45648228]
[1752092039314,0.4995,111440.0,111410.0,0.0448646]
[1752092039513,0.93702661,111440.0,111430.0,0.56082709]
[1752092039717,0.53118111,111440.0,111430.0,0.56082709]
[1752092039908,0.39658111,111440.0,111430.0,0.58424709]
[1752092040109,0.0448614,111430.0,111410.0,0.4505332]
[1752092040310,1.01137629,111420.0,111410.0,0.03]
[1752092040611,1.38589427,111420.0,111410.0,0.03]
[1752092040818,0.1794724,111410.0,111400.0,0.01680969]
[1752092041022,0.1794885,111400.0,111390.0,0.01672676]
[1752092041213,1.06817539,111400.0,111390.0,0.33]
[1752092041414,1.6211986,111400.0,111390.0,0.33]
[1752092041617,0.1795369,111370.0,111360.0,0.01868885]
[1752092041808,0.5403369,111370.0,111360.0,0.88412185]
[1752092042013,0.6868369,111370.0,111360.0,1.21412185]
[1752092042213,0.6868369,111370.0,111360.0,0.52824185]
[1752092042413,0.6868369,111370.0,111360.0,1.21396185]
[1752092042621,0.6868369,111370.0,111360.0,0.88396185]
[1752092042824,0.3608,111370.0,111360.0,1.59734874]
[1752092043014,0.5403369,111370.0,111360.0,1.05692874]
[1752092043416,0.6868369,111370.0,111360.0,1.74248874]
[1752092043612,0.6868369,111370.0,111360.0,1.49680185]
[1752092043824,0.6868369,111370.0,111360.0,1.49676185]
[1752092044019,0.6868369,111370.0,111360.0,1.87814874]
[1752092044212,0.6868369,111370.0,111360.0,1.90156874]
[1752092044417,0.6868369,111370.0,111360.0,1.87814874]
[1752092045626,0.6868369,111370.0,111360.0,1.87914874]
[1752092046032,0.6868369,111370.0,111360.0,1.90256874]
[1752092046325,0.6868369,111370.0,111360.0,1.94256874]
[1752092047122,0.6868369,111370.0,111360.0,1.94216874]
[1752092047422,0.6868369,111370.0,111360.0,0.39168885]
[1752092047621,0.1465,111370.0,111360.0,0.95262874]
[1752092047821,0.3260369,111370.0,111360.0,1.11804874]
[1752092048020,0.1795369,111370.0,111360.0,1.49943563]
[1752092048222,0.1795369,111370.0,111360.0,1.25484874]
[1752092048525,0.1795369,111370.0,111360.0,1.55222874]
[1752092048822,0.1795369,111370.0,111360.0,1.57504874]
[1752092049622,0.5830814,111380.0,111370.0,0.1795369]
[1752092049821,0.9438814,111380.0,111370.0,0.71138689]
[1752092050023,0.9438814,111380.0,111370.0,0.89092379]
[1752092050223,0.6749208,111380.0,111370.0,0.89092379]
[1752092050526,0.1795208,111380.0,111370.0,1.50920779]
[1752092050726,0.7204957,111390.0,111380.0,0.1795208]
[1752092050922,0.75441495,111390.0,111380.0,1.05862769]
[1752092051122,0.75441495,111390.0,111380.0,1.88476769]
[1752092051320,0.34872385,111390.0,111380.0,1.88476769]
[1752092051523,0.03391925,111390.0,111380.0,1.88476769]
[1752092052117,0.1795046,111390.0,111380.0,2.01450869]
[1752092052327,0.21343562,111390.0,111380.0,2.02450869]
[1752092052524,0.5403046,111390.0,111380.0,1.75524689]
[1752092052721,0.57318511,111390.0,111380.0,1.93476769]
[1752092052923,0.5403046,111390.0,111380.0,1.93476769]
[1752092053122,0.57320281,111390.0,111380.0,1.89476769]
[1752092053626,0.5403046,111390.0,111380.0,1.89476769]
[1752092053818,0.60418132,111400.0,111390.0,0.1795046]
[1752092054023,0.63708038,111400.0,111390.0,1.22221149]
[1752092054324,0.05190528,111400.0,111390.0,1.58301149]
[1752092054823,0.23239378,111400.0,111390.0,1.59101149]
[1752092055027,0.05290528,111400.0,111390.0,1.59101149]
[1752092055217,0.05390528,111400.0,111390.0,1.60301149]
[1752092055417,0.23339378,111400.0,111390.0,1.2216246]
[1752092055621,0.59419378,111400.0,111390.0,0.68132]
[1752092055818,0.59319378,111400.0,111390.0,1.22308]
[1752092056020,0.72699378,111400.0,111390.0,0.96771149]
[1752092056226,0.86129378,111400.0,111390.0,1.0907]
[1752092056426,0.86129378,111400.0,111390.0,1.2702046]
[1752092056631,0.86129378,111400.0,111390.0,0.9002046]
[1752092056826,0.72699378,111400.0,111390.0,1.64159149]
[1752092057132,0.05290528,111400.0,111390.0,1.77799149]
[1752092057326,0.05290528,111400.0,111390.0,1.90779149]
[1752092057728,0.05290528,111400.0,111390.0,2.26859149]
[1752092057924,0.05190528,111400.0,111390.0,1.8802046]
[1752092058124,0.05190528,111400.0,111390.0,2.26159149]
[1752092058526,0.05199089,111400.0,111390.0,2.76159149]
[1752092059021,0.05199089,111400.0,111390.0,2.76059149]
[1752092059231,0.05399089,111400.0,111390.0,2.76059149]
[1752092059626,0.05399089,111400.0,111390.0,2.77290179]
[1752092059836,0.05399089,111400.0,111390.0,2.75411149]
[1752092060031,0.05799089,111400.0,111390.0,2.75411149]
[1752092060731,0.03898467,111400.0,111390.0,3.16649518]
[1752092061132,0.24178217,111430.0,111420.0,0.1794563]
[1752092061327,0.0513489,111430.0,111420.0,0.96842559]
[1752092061632,0.2307891,111430.0,111420.0,1.25053587]
[1752092061828,0.0513489,111430.0,111420.0,1.25053587]
[1752092062227,0.0513489,111430.0,111420.0,1.25653587]
[1752092062427,0.0513489,111430.0,111420.0,1.24402559]
[1752092062827,0.03294907,111430.0,111420.0,1.23802559]
[1752092063035,0.03494907,111430.0,111420.0,1.23802559]
[1752092063625,0.03494907,111430.0,111420.0,1.25068931]
[1752092064830,0.03494907,111430.0,111420.0,1.32280073]
[1752092065332,0.03494907,111430.0,111420.0,1.99273701]
[1752092066531,0.03494907,111430.0,111420.0,2.00535673]
[1752092066737,0.03494907,111430.0,111420.0,1.32256326]
[1752092067039,0.03494907,111430.0,111420.0,1.99246354]
[1752092067239,0.03494907,111430.0,111420.0,2.49246354]
[1752092068132,0.03494907,111430.0,111420.0,2.49226354]
[1752092068333,0.21438927,111430.0,111420.0,1.80994354]
[1752092068630,0.57518927,111430.0,111420.0,1.37703212]
[1752092069035,0.57518927,111430.0,111420.0,2.05907212]
[1752092069642,0.57518927,111430.0,111420.0,2.05906849]
[1752092069840,0.57518927,111430.0,111420.0,1.55906849]
[1752092070047,0.57518927,111430.0,111420.0,1.55902849]
[1752092071836,0.57518927,111430.0,111420.0,1.53620849]
[1752092072035,0.57518927,111430.0,111420.0,1.55902849]
[1752092073141,0.03494907,111430.0,111420.0,1.99185783]
[1752092073942,0.03494907,111430.0,111420.0,0.87702849]
[1752092073943,0.21438927,111430.0,111420.0,0.87702849]
[1752092074236,0.57518927,111430.0,111420.0,0.68380689]
[1752092074444,0.57518927,111430.0,111420.0,1.52176319]
[1752092074633,0.59252001,111430.0,111420.0,0.29336738]
[1752092074848,1.09352001,111430.0,111420.0,0.01]
[1752092075040,1.21742001,111430.0,111420.0,0.01]
[1752092076432,1.21742001,111430.0,111410.0,1.66837779]
[1752092076638,0.3196562,111420.0,111410.0,1.3169909]
[1752092076840,0.71340527,111420.0,111410.0,0.97230979]
[1752092077642,0.71340527,111420.0,111410.0,0.97330979]
[1752092078041,0.71340527,111420.0,111410.0,1.67700979]
[1752092078348,0.71340527,111420.0,111410.0,1.67641979]
[1752092078536,0.71340527,111420.0,111410.0,1.66796657]
[1752092078735,0.71340527,111420.0,111410.0,1.69119748]
[1752092078940,0.71340527,111420.0,111410.0,1.67741979]
[1752092079142,0.35260527,111420.0,111410.0,1.67741979]
[1752092079445,0.03294907,111420.0,111410.0,1.67741979]
[1752092079636,0.03294907,111420.0,111410.0,1.69120062]
[1752092079843,0.03394907,111420.0,111410.0,1.69120062]
[1752092080035,0.03394907,111420.0,111410.0,2.05200062]
[1752092080551,0.21540547,111420.0,111410.0,2.05100062]
[1752092080844,0.03594907,111420.0,111410.0,2.05100062]
[1752092082445,0.003,111420.0,111410.0,2.05100062]
[1752092083941,0.003,111420.0,111410.0,1.37012062]
[1752092084142,0.003,111420.0,111410.0,2.05020062]
[1752092084446,0.003,111420.0,111410.0,2.55020062]
[1752092084644,0.001,111420.0,111410.0,2.55120062]
[1752092085244,0.01733074,111430.0,111420.0,0.1794564]
[1752092085449,0.01733074,111430.0,111420.0,1.25470412]
[1752092085949,0.05029723,111430.0,111420.0,1.25470412]
[1752092086151,0.05029723,111430.0,111420.0,1.26470412]
[1752092086447,0.05129723,111430.0,111420.0,1.26470412]
[1752092087252,0.05129723,111430.0,111420.0,1.56691412]
[1752092087440,0.23073753,111430.0,111420.0,1.56691412]
[1752092087642,0.05129723,111430.0,111420.0,1.56691412]
[1752092088043,0.23073753,111430.0,111420.0,1.56691412]
[1752092088244,0.05129723,111430.0,111420.0,1.56691412]
[1752092088549,0.59153753,111430.0,111420.0,1.04766723]
[1752092088753,0.84383753,111430.0,111420.0,1.04766723]
[1752092089055,1.96621917,111420.0,111410.0,1.54419139]
[1752092089249,2.17864206,111420.0,111410.0,0.5805226]
[1752092089447,2.30704206,111420.0,111410.0,1.33925949]
[1752092089653,2.30704206,111420.0,111410.0,0.93359279]
[1752092089654,2.66784206,111420.0,111410.0,0.93359279]
[1752092089851,2.66784206,111420.0,111410.0,0.4841092]
[1752092090047,2.30704206,111420.0,111410.0,0.3550092]
[1752092090251,2.66784206,111420.0,111410.0,0.76062609]
[1752092090557,2.48838566,111420.0,111410.0,0.89042609]
[1752092090852,2.66784206,111420.0,111410.0,0.89042609]
[1752092092149,2.66784206,111420.0,111410.0,0.86042609]
[1752092092357,2.79784206,111420.0,111410.0,0.87042609]
[1752092092660,2.66784206,111420.0,111410.0,1.18042609]
[1752092093052,2.53944206,111420.0,111410.0,1.18042609]
[1752092093350,2.53944206,111420.0,111410.0,0.86042609]
[1752092093758,2.53944206,111420.0,111410.0,0.91042609]
[1752092094760,2.50647557,111420.0,111410.0,0.91042609]
[1752092094958,2.53929473,111420.0,111410.0,0.91042609]
[1752092095259,2.53929473,111420.0,111410.0,0.88719609]
[1752092095652,2.53929473,111420.0,111410.0,0.91042609]
[1752092097759,2.68029473,111420.0,111410.0,0.06755]
[1752092097961,2.80919473,111420.0,111410.0,0.2470225]
[1752092098957,2.80919473,111420.0,111410.0,0.62840939]
[1752092099159,2.80919473,111420.0,111410.0,0.76370939]
[1752092099756,2.80919473,111420.0,111410.0,0.44893689]
[1752092099961,3.16999473,111420.0,111410.0,0.051]
[1752092100155,3.55138162,111420.0,111410.0,0.051]
[1752092100562,0.1794886,111400.0,111390.0,0.3271383]
[1752092100858,1.92886776,111400.0,111390.0,0.1965391]
[1752092101067,2.19666776,111400.0,111390.0,0.04081177]
[1752092101263,2.37621176,111400.0,111390.0,0.04081177]
[1752092101463,0.84090776,111400.0,111390.0,0.22031647]
[1752092101659,0.71210776,111400.0,111390.0,0.61825336]
[1752092101860,1.38978776,111400.0,111390.0,0.38096647]
[1752092102063,0.71310776,111400.0,111390.0,0.38096647]
[1752092102261,1.39078776,111400.0,111390.0,0.52046647]
[1752092102561,0.71310776,111400.0,111390.0,0.52346647]
[1752092102766,1.25166776,111400.0,111390.0,0.94485336]
[1752092103163,1.25266776,111400.0,111390.0,0.94185336]
[1752092103969,1.2198486,111400.0,111390.0,0.94185336]
[1752092104566,0.5422886,111400.0,111390.0,0.94185336]
[1752092104874,0.03487186,111400.0,111390.0,1.30265336]
[1752092105060,0.03487186,111400.0,111390.0,2.28342336]
[1752092105260,0.03487186,111400.0,111390.0,2.30665336]
[1752092105466,0.002,111400.0,111390.0,2.30665336]
[1752092105968,0.001,111400.0,111390.0,2.30865336]
[1752092107167,0.19644808,111410.0,111400.0,0.1794886]
[1752092107367,0.22931065,111410.0,111400.0,1.29430286]
[1752092107663,0.03286257,111410.0,111400.0,1.61891975]
[1752092107863,0.03286257,111410.0,111400.0,1.94891975]
[1752092108366,0.03286257,111410.0,111400.0,1.94991975]
[1752092108957,0.03286257,111410.0,111400.0,1.70773286]
[1752092109162,0.21233507,111410.0,111400.0,1.06311597]
[1752092109370,0.21233507,111410.0,111400.0,0.62132737]
[1752092109565,1.39254996,111410.0,111400.0,0.60477737]
[1752092109762,1.76254996,111410.0,111400.0,0.51477737]
[1752092109960,1.78980603,111410.0,111400.0,0.51487085]
[1752092110165,1.98980603,111410.0,111400.0,0.50091824]
[1752092110564,0.1794886,111400.0,111390.0,0.0170344]
[1752092110771,1.58378206,111400.0,111390.0,0.06090739]
[1752092111072,1.26378206,111400.0,111390.0,0.0170344]
[1752092111271,0.1795047,111390.0,111380.0,0.1795204]
[1752092111461,0.73120163,111390.0,111380.0,0.2095204]
[1752092111861,1.11258852,111390.0,111380.0,0.03]
[1752092112067,1.49258852,111390.0,111380.0,0.03]
[1752092112267,1.11258852,111390.0,111380.0,0.03]
[1752092112669,0.91076163,111390.0,111380.0,0.03]
[1752092112969,0.91076163,111390.0,111380.0,0.2095208]
[1752092113765,0.83630163,111390.0,111380.0,0.2246908]
[1752092113964,0.1795208,111380.0,111370.0,0.3176232]
[1752092114167,0.71263954,111380.0,111370.0,0.20327]
[1752092114374,0.71263954,111380.0,111370.0,0.1881]
[1752092114569,0.6801208,111380.0,111370.0,0.20108643]
[1752092114869,0.81762919,111380.0,111370.0,0.1881]
[1752092115073,0.7850208,111380.0,111370.0,0.1881]
[1752092115263,1.37858597,111380.0,111370.0,0.05]
[1752092115463,1.34598369,111380.0,111370.0,0.06297738]
[1752092115660,0.9645968,111380.0,111370.0,0.06297738]
[1752092115969,0.99720165,111380.0,111370.0,0.06298787]
[1752092116173,0.9645968,111380.0,111370.0,0.1859]
[1752092116566,0.9645968,111380.0,111370.0,0.1659]
[1752092116766,1.6417168,111380.0,111370.0,0.1659]
[1752092117665,1.6417168,111380.0,111370.0,0.1759]
[1752092118065,1.6417168,111380.0,111370.0,0.05300735]
[1752092118573,2.02310369,111380.0,111370.0,0.04]
[1752092118772,1.4621408,111380.0,111370.0,0.04]
[1752092118975,0.179537,111370.0,111360.0,0.5071362]
[1752092119176,0.55706461,111370.0,111360.0,0.3678659]
[1752092119568,0.55706461,111370.0,111360.0,0.36567001]
[1752092119768,0.69246461,111370.0,111360.0,0.36567001]
[1752092120275,0.69246461,111370.0,111360.0,0.36667001]
[1752092120474,0.69246461,111370.0,111360.0,0.22017001]
[1752092120974,0.55706461,111370.0,111360.0,0.82049]
[1752092121174,0.55706461,111370.0,111360.0,0.95459]
[1752092121476,0.01672761,111370.0,111360.0,1.61380278]
[1752092121679,0.01672761,111370.0,111360.0,1.76380278]
[1752092122064,0.01672761,111370.0,111360.0,1.40300278]
[1752092122065,0.19626461,111370.0,111360.0,1.40300278]
[1752092122271,0.19626461,111370.0,111360.0,1.02161589]
[1752092122576,0.19626461,111370.0,111360.0,1.10643924]
[1752092123768,0.19626461,111370.0,111360.0,0.92688614]
[1752092123971,0.55706461,111370.0,111360.0,0.31128925]
[1752092124176,0.55706461,111370.0,111360.0,0.3243085]
[1752092124365,0.69586461,111370.0,111360.0,0.3243085]
[1752092124570,0.69586461,111370.0,111360.0,0.31048515]
[1752092124869,0.69586461,111370.0,111360.0,0.1633659]
[1752092125066,0.69586461,111370.0,111360.0,0.3181659]
[1752092126377,0.69586461,111370.0,111360.0,0.33124355]
[1752092126678,0.69586461,111370.0,111360.0,0.33122834]
[1752092126875,0.69586461,111370.0,111360.0,0.34526248]
[1752092127071,1.23170461,111370.0,111360.0,0.93041247]
[1752092127266,0.69128761,111370.0,111360.0,1.29662936]
[1752092127473,0.01672761,111370.0,111360.0,1.07524247]
[1752092127670,0.01672761,111370.0,111360.0,1.06218003]
[1752092127868,0.3608,111390.0,111360.0,2.36812582]
[1752092128176,0.55754107,111410.0,111400.0,0.1794886]
[1752092128378,0.22911788,111410.0,111400.0,0.62087549]
[1752092128675,0.04964538,111410.0,111400.0,0.79838549]
[1752092129277,0.04964538,111410.0,111400.0,0.72838549]
[1752092129574,0.04964538,111410.0,111400.0,0.80838549]
[1752092129775,1.96621917,111420.0,111410.0,0.1794725]
[1752092129982,1.96621917,111420.0,111410.0,2.47497939]
[1752092130276,1.96621917,111420.0,111410.0,2.49918939]
[1752092130870,1.96621917,111420.0,111410.0,2.47497939]
[1752092131071,1.96621917,111420.0,111410.0,2.49918939]
[1752092132179,1.96621917,111420.0,111410.0,2.79918939]
[1752092132875,1.96621917,111420.0,111410.0,2.74918939]
[1752092133075,1.96621917,111420.0,111410.0,2.7631948]
[1752092133276,1.96621917,111420.0,111410.0,2.9066948]
[1752092133468,1.96621917,111420.0,111410.0,2.90668842]
[1752092134080,1.96621917,111420.0,111410.0,2.96668842]
[1752092134578,1.96621917,111420.0,111410.0,1.61816842]
[1752092134780,1.96621917,111420.0,111410.0,1.73678153]
[1752092134971,1.96621917,111420.0,111410.0,1.54678153]
[1752092135176,2.50647557,111420.0,111410.0,1.18598153]
[1752092135378,2.50647557,111420.0,111410.0,0.99525307]
[1752092135572,2.32701917,111420.0,111410.0,1.71032246]
[1752092135781,2.14567557,111420.0,111410.0,1.80816842]
[1752092136181,2.14567557,111420.0,111410.0,1.30816842]
[1752092136391,2.14567557,111420.0,111410.0,0.94736842]
[1752092136572,2.14567557,111420.0,111410.0,0.55482263]
[1752092136777,2.14567557,111420.0,111410.0,0.5277725]
[1752092137184,2.14567557,111420.0,111410.0,0.90915939]
[1752092137384,2.50647557,111420.0,111410.0,0.90915939]
[1752092137585,2.14567557,111420.0,111410.0,0.92602146]
[1752092137786,2.14567557,111420.0,111410.0,0.54463457]
[1752092138084,2.88786246,111420.0,111410.0,0.07686207]
[1752092138385,3.15986246,111420.0,111410.0,0.07686207]
[1752092138584,3.33937446,111420.0,111410.0,0.05]
[1752092138888,3.66937446,111420.0,111410.0,0.05]
[1752092139388,2.95798757,111420.0,111410.0,0.05]
[1752092139583,2.77847557,111420.0,111410.0,0.2294725]
[1752092139889,3.32077557,111420.0,111410.0,0.2294725]
[1752092140187,3.32077557,111420.0,111410.0,0.5059725]
[1752092140382,3.32077557,111420.0,111410.0,0.2965]
[1752092140582,3.70216246,111420.0,111410.0,0.022]
[1752092140784,4.01217446,111420.0,111410.0,0.022]
[1752092140986,0.1795369,111370.0,111360.0,0.19923521]
[1752092141193,1.8856569,111370.0,111360.0,0.43961325]
[1752092141494,1.8856569,111370.0,111360.0,0.32128068]
[1752092141791,1.8856569,111370.0,111360.0,0.89222057]
[1752092141996,1.8856569,111370.0,111360.0,1.43294276]
[1752092141997,1.5248569,111370.0,111360.0,1.43294276]
[1752092142288,1.5248569,111370.0,111360.0,1.0318325]
[1752092142496,0.1795369,111370.0,111360.0,0.8522795]
[1752092142787,0.1795369,111370.0,111360.0,0.8542795]
[1752092142992,0.5403369,111370.0,111360.0,0.8542795]
[1752092143390,0.5403369,111370.0,111360.0,0.8522795]
[1752092143789,0.1795369,111370.0,111360.0,0.8522795]